fUST/lending_fUST_20250206
["ID","MTS","AMOUNT","RATE_DAILY","PERIOD"]
[351854625,1738822055248,-500.0,0.00013835,2]
[351854626,1738822055271,-151.0,0.00013835,2]
[351854627,1738822055293,-500.0,0.00013835,2]
[351854628,1738822055314,-151.0,0.00013835,2]
[351854629,1738822055339,-500.0,0.00013835,2]
[351854630,1738822055360,-500.0,0.00013835,2]
[351854631,1738822055382,-500.0,0.00013835,2]
[351854632,1738822055406,-500.0,0.00013835,2]
[351854633,1738822055428,-500.0,0.00013835,2]
[351854634,1738822055451,-518.06220614,0.00013835,2]
[351854635,1738822055473,-1198.65,0.00013835,2]
[351854636,1738822055495,-500.0,0.00013835,2]
[351854637,1738822055519,-500.0,0.00013835,2]
[351854638,1738822055542,-686.86,0.00013835,2]
[351854639,1738822055563,-631.27487335,0.00013835,2]
[351854640,1738822055587,-596.05670382,0.00013835,2]
[351854641,1738822055610,-500.0,0.00013835,2]
[351854642,1738822055631,-500.0,0.00013835,2]
[351854643,1738822055653,-504.58516785,0.00013835,2]
[351854644,1738822055675,-500.0,0.00013835,2]
[351854645,1738822055697,-500.0,0.00013835,2]
[351854646,1738822055719,-627.32,0.00013835,2]
[351854647,1738822055741,-503.64,0.00013835,2]
[351854648,1738822055763,-500.0,0.00013835,2]
[351854649,1738822055786,-962.59,0.00013835,2]
[351854650,1738822055807,-500.0,0.00013835,2]
[351854651,1738822055830,-510.95019985,0.00013835,2]
[351854652,1738822055855,-500.0,0.00013835,2]
[351854653,1738822055877,-684.0,0.00013835,2]
[351854654,1738822055900,-500.0,0.00013835,2]
[351854655,1738822056055,-500.0,0.00013835,2]
[351854656,1738822056080,-500.0,0.00013835,2]
[351854657,1738822056102,-1220.69,0.00013835,2]
[351854658,1738822056124,-560.1686847,0.00013835,2]
[351854659,1738822056146,-177.95858718,0.00013835,2]
[351854660,1738822056168,-500.0,0.00013835,2]
[351854661,1738822056191,-500.0,0.00013835,2]
[351854662,1738822056212,-664.19,0.00013835,2]
[351854663,1738822056235,-603.78,0.00013835,2]
[351854664,1738822056257,-500.0,0.00013835,2]
[351854665,1738822056279,-151.0,0.00013835,2]
[351854666,1738822056301,-281.38332096,0.00013835,2]
[351854667,1738822056325,-500.0,0.00013835,2]
[351854668,1738822056347,-500.0,0.00013835,2]
[351854669,1738822056370,-929.79,0.00013835,2]
[351854670,1738822056391,-500.0,0.00013835,2]
[351854671,1738822056413,-500.0,0.00013835,2]
[351854672,1738822056436,-500.0,0.00013835,2]
[351854673,1738822056459,-594.09,0.00013835,2]
[351854674,1738822056482,-858.78,0.00013835,2]
[351854675,1738822056505,-2224.99,0.00013835,2]
[351854676,1738822056528,-500.0,0.00013835,2]
[351854677,1738822056551,-813.82,0.00013835,2]
[351854678,1738822056575,-500.0,0.00013835,2]
[351854679,1738822056597,-500.0,0.00013835,2]
[351854680,1738822056619,-500.0,0.00013835,2]
[351854681,1738822056643,-500.0,0.00013835,2]
[351854682,1738822056666,-500.0,0.00013835,2]
[351854683,1738822056688,-844.65,0.00013835,2]
[351854684,1738822056710,-151.0,0.00013835,2]
[351854685,1738822056732,-151.0,0.00013835,2]
[351854686,1738822056754,-2202.19,0.00013835,2]
[351854687,1738822056776,-500.0,0.00013835,2]
[351854688,1738822056798,-500.0,0.00013835,2]
[351854689,1738822056820,-689.2,0.00013835,2]
[351854690,1738822056845,-500.0,0.00013835,2]
[351854691,1738822056868,-231.14606,0.00013835,2]
[351854692,1738822056894,-500.0,0.00013835,2]
[351854693,1738822056918,-356.37991583,0.00013835,2]
[351854694,1738822056940,-500.0,0.00013835,2]
[351854695,1738822056963,-1474.55,0.00013835,2]
[351854696,1738822056985,-500.0,0.00013835,2]
[351854697,1738822057011,-500.0,0.00013835,2]
[351854698,1738822057033,-500.0,0.00013835,2]
[351854699,1738822057055,-500.21,0.00013835,2]
[351854700,1738822057078,-500.0,0.00013835,2]
[351854701,1738822057100,-594.7760399,0.00013835,2]
[351854702,1738822057122,-500.0,0.00013835,2]
[351854703,1738822057143,-500.0,0.00013835,2]
[351854704,1738822057165,-500.0,0.00013835,2]
[351854705,1738822057187,-500.0,0.00013835,2]
[351854706,1738822057209,-626.0,0.00013835,2]
[351854707,1738822057231,-500.0,0.00013835,2]
[351854708,1738822057253,-500.0,0.00013835,2]
[351854709,1738822057276,-500.0,0.00013835,2]
[351854710,1738822057298,-500.0,0.00013835,2]
[351854711,1738822057320,-500.0,0.00013835,2]
[351854712,1738822057341,-151.0,0.00013835,2]
[351854713,1738822057363,-504.64560283,0.00013835,2]
[351854714,1738822057385,-2204.91,0.00013835,2]
[351854715,1738822057407,-500.0,0.00013835,2]
[351854716,1738822057428,-639.59,0.00013835,2]
[351854717,1738822057450,-151.0,0.00013835,2]
[351854718,1738822057472,-500.0,0.00013835,2]
[351854719,1738822057494,-626.84,0.00013835,2]
[351854720,1738822057516,-500.0,0.00013835,2]
[351854721,1738822057538,-277.28581409,0.00013835,2]
[351854722,1738822057561,-2316.36,0.00013835,2]
[351854723,1738822057583,-1078.27,0.00013835,2]
[351854724,1738822057607,-500.0,0.00013835,2]
[351854725,1738822057629,-500.0,0.00013835,2]
[351854726,1738822057651,-500.0,0.00013835,2]
[351854727,1738822057674,-1179.04,0.00013835,2]
[351854728,1738822057695,-231.70493218,0.00013835,2]
[351854729,1738822057716,-608.57,0.00013835,2]
[351854730,1738822057739,-1027.28,0.00013835,2]
[351854731,1738822057762,-659.01,0.00013835,2]
[351854732,1738822057785,-500.0,0.00013835,2]
[351854733,1738822057807,-1000.1,0.00013835,2]
[351854734,1738822057829,-1768.12,0.00013835,2]
[351854735,1738822057852,-500.0,0.00013835,2]
[351854736,1738822057874,-500.0,0.00013835,2]
[351854737,1738822057897,-1164.33,0.00013835,2]
[351854738,1738822057922,-744.82,0.00013835,2]
[351854739,1738822057945,-603.4,0.00013835,2]
[351854740,1738822057967,-649.163296,0.00013835,2]
[351854741,1738822057989,-649.163296,0.00013835,2]
[351854742,1738822058012,-541.99,0.00013835,2]
[351854743,1738822058034,-508.95,0.00013835,2]
[351854744,1738822058056,-3058.07,0.00013835,2]
[351854745,1738822058080,-5993.42,0.00013835,2]
[351854746,1738822058103,-500.0,0.00013835,2]
[351854747,1738822058126,-500.0,0.00013835,2]
[351854748,1738822058147,-500.0,0.00013835,2]
[351854749,1738822058169,-500.0,0.00013835,2]
[351854750,1738822058193,-28430.8,0.00013835,2]
[351854751,1738822058216,-829.82,0.00013835,2]
[351854752,1738822058239,-2179.51,0.00013835,2]
[351854753,1738822058261,-500.0,0.00013835,2]
[351854754,1738822058284,-500.0,0.00013835,2]
[351854755,1738822058306,-349.38190605,0.00013835,2]
[351854756,1738822058330,-223.298621,0.00013835,2]
[351854757,1738822058352,-500.0,0.00013835,2]
[351854758,1738822058374,-934.47,0.00013835,2]
[351854759,1738822058396,-519.86851617,0.00013835,2]
[351854760,1738822058417,-500.0,0.00013835,2]
[351854761,1738822058439,-223.298621,0.00013835,2]
[351854762,1738822058462,-500.0,0.00013835,2]
[351854763,1738822058483,-500.0,0.00013835,2]
[351854764,1738822058507,-391.62176744,0.00013835,2]
[351854765,1738822058529,-420.64790199,0.00013835,2]
[351854766,1738822058550,-151.0,0.00013835,2]
[351854767,1738822058572,-500.0,0.00013835,2]
[351854768,1738822058595,-558.2,0.00013835,2]
[351854769,1738822058617,-4190.88,0.00013835,2]
[351854770,1738822058640,-3312.82,0.00013835,2]
[351854771,1738822058663,-671.71,0.00013835,2]
[351854772,1738822058684,-151.0,0.00013835,2]
[351854773,1738822058706,-800.03,0.00013835,2]
[351854774,1738822058728,-500.0,0.00013835,2]
[351854775,1738822058752,-500.0,0.00013835,2]
[351854776,1738822058774,-151.0,0.00013835,2]
[351854777,1738822058963,-507.42403273,0.00013835,2]
[351854778,1738822058987,-1931.42,0.00013835,2]
[351854779,1738822059010,-151.0,0.00013835,2]
[351854780,1738822059031,-2202.72,0.00013835,2]
[351854781,1738822059052,-1018.89,0.00013835,2]
[351854782,1738822059076,-1566.05,0.00013835,2]
[351854783,1738822059098,-561.73,0.00013835,2]
[351854784,1738822059121,-513.75,0.00013835,2]
[351854785,1738822059142,-500.0,0.00013835,2]
[351854786,1738822059164,-1881.69,0.00013835,2]
[351854787,1738822059186,-605.36,0.00013835,2]
[351854788,1738822059210,-5123.3,0.00013835,2]
[351854789,1738822059232,-725.61,0.00013835,2]
[351854790,1738822059255,-927.78,0.00013835,2]
[351854791,1738822059277,-1271.07,0.00013835,2]
[351854792,1738822059300,-500.0,0.00013835,2]
[351854793,1738822059321,-151.0,0.00013835,2]
[351854794,1738822059344,-1862.54,0.00013835,2]
[351854795,1738822059366,-740.24,0.00013835,2]
[351854796,1738822059388,-77490.92,0.00013835,2]
[351854797,1738822059411,-179.59849358,0.00013835,2]
[351854798,1738822059434,-1350.03,0.00013835,2]
[351854799,1738822059456,-10825.23,0.00013835,2]
[351854800,1738822059478,-1282.71,0.00013835,2]
[351854801,1738822059500,-500.0,0.00013835,2]
[351854802,1738822059522,-342.89392352,0.00013835,2]
[351854803,1738822059545,-500.0,0.00013835,2]
[351854804,1738822059567,-3871.55,0.00013835,2]
[351854805,1738822059593,-882.38,0.00013835,2]
[351854806,1738822059617,-632.56,0.00013835,2]
[351854807,1738822059639,-500.0,0.00013835,2]
[351854808,1738822059663,-500.0,0.00013835,2]
[351854809,1738822059685,-500.0,0.00013835,2]
[351854810,1738822059709,-1289.03,0.00013835,2]
[351854811,1738822059732,-2302.96,0.00013835,2]
[351854812,1738822059755,-151.0,0.00013835,2]
[351854813,1738822059777,-500.0,0.00013835,2]
[351854814,1738822059802,-609.62,0.00013835,2]
[351854815,1738822059829,-500.0,0.00013835,2]
[351854816,1738822059854,-863.89,0.00013835,2]
[351854817,1738822059877,-503.70404579,0.00013835,2]
[351854818,1738822059901,-500.0,0.00013835,2]
[351854819,1738822059926,-500.0,0.00013835,2]
[351854820,1738822059949,-500.0,0.00013835,2]
[351854821,1738822059976,-500.0,0.00013835,2]
[351854822,1738822059998,-500.0,0.00013835,2]
[351854823,1738822060020,-500.0,0.00013835,2]
[351854824,1738822060042,-1298.58,0.00013835,2]
[351854825,1738822060064,-500.0,0.00013835,2]
[351854826,1738822060090,-509.65396063,0.00013835,2]
[351854827,1738822060114,-1102.01,0.00013835,2]
[351854828,1738822060137,-791.49,0.00013835,2]
[351854829,1738822060160,-500.0,0.00013835,2]
[351854830,1738822060186,-549.43,0.00013835,2]
[351854831,1738822060210,-501.99,0.00013835,2]
[351854832,1738822060232,-510.81051585,0.00013835,2]
[351854833,1738822060254,-500.0,0.00013835,2]
[351854834,1738822060278,-6308.61,0.00013835,2]
[351854835,1738822060303,-172.032232,0.00013835,2]
[351854836,1738822060327,-172.032232,0.00013835,2]
[351854837,1738822060349,-500.0,0.00013835,2]
[351854838,1738822060373,-8269.95,0.00013835,2]
[351854839,1738822060395,-500.0,0.00013835,2]
[351854840,1738822060420,-3411.99,0.00013835,2]
[351854841,1738822060445,-500.0,0.00013835,2]
[351854842,1738822060468,-27098.26,0.00013835,2]
[351854843,1738822060492,-749.3,0.00013835,2]
[351854844,1738822060514,-151.0,0.00013835,2]
[351854845,1738822060537,-2587.41,0.00013835,2]
[351854846,1738822060560,-2174.68,0.00013835,2]
[351854847,1738822060583,-500.0,0.00013835,2]
[351854848,1738822060608,-197.009496,0.00013835,2]
[351854849,1738822060631,-152.84802516,0.00013835,2]
[351854850,1738822060657,-197.009496,0.00013835,2]
[351854851,1738822060679,-900.15,0.00013835,2]
[351854852,1738822060704,-500.0,0.00013835,2]
[351854853,1738822060729,-500.0,0.00013835,2]
[351854854,1738822060754,-817.5,0.00013835,2]
[351854855,1738822060778,-500.0,0.00013835,2]
[351854856,1738822060801,-689.49,0.00013835,2]
[351854857,1738822060826,-500.0,0.00013835,2]
[351854858,1738822060855,-500.0,0.00013835,2]
[351854859,1738822060880,-2071.89,0.00013835,2]
[351854860,1738822060905,-503.52746898,0.00013835,2]
[351854861,1738822060931,-500.0,0.00013835,2]
[351854862,1738822060955,-500.0,0.00013835,2]
[351854863,1738822060979,-2225.74,0.00013835,2]
[351854864,1738822061004,-2453.54,0.00013835,2]
[351854865,1738822061027,-1317.24,0.00013835,2]
[351854866,1738822061050,-151.0,0.00013835,2]
[351854867,1738822061075,-500.0,0.00013835,2]
[351854868,1738822061097,-670.63,0.00013835,2]
[351854869,1738822061119,-377.31095079,0.00013835,2]
[351854870,1738822061141,-500.0,0.00013835,2]
[351854871,1738822061164,-500.0,0.00013835,2]
[351854872,1738822061188,-740.08,0.00013835,2]
[351854873,1738822061211,-3501.62,0.00013835,2]
[351854874,1738822061234,-500.0,0.00013835,2]
[351854875,1738822061258,-509.17,0.00013835,2]
[351854876,1738822061280,-500.0,0.00013835,2]
[351854877,1738822061303,-651.59,0.00013835,2]
[351854878,1738822061328,-218.04473,0.00013835,2]
[351854879,1738822061350,-500.0,0.00013835,2]
[351854880,1738822061373,-500.0,0.00013835,2]
[351854881,1738822061395,-218.04473,0.00013835,2]
[351854882,1738822061418,-500.0,0.00013835,2]
[351854883,1738822061442,-6536.28,0.00013835,2]
[351854884,1738822061464,-913.67,0.00013835,2]
[351854885,1738822061487,-500.0,0.00013835,2]
[351854886,1738822061509,-520.30674239,0.00013835,2]
[351854887,1738822061533,-500.0,0.00013835,2]
[351854888,1738822061558,-506.0676836,0.00013835,2]
[351854889,1738822061582,-500.0,0.00013835,2]
[351854890,1738822061606,-4003.24,0.00013835,2]
[351854891,1738822061629,-500.0,0.00013835,2]
[351854892,1738822061653,-990.46,0.00013835,2]
[351854893,1738822061676,-151.0,0.00013835,2]
[351854894,1738822061699,-151.0,0.00013835,2]
[351854895,1738822061868,-151.0,0.00013835,2]
[351854896,1738822061893,-151.0,0.00013835,2]
[351854897,1738822061916,-151.0,0.00013835,2]
[351854898,1738822061941,-151.0,0.00013835,2]
[351854899,1738822061964,-2124.74,0.00013835,2]
[351854900,1738822061987,-151.0,0.00013835,2]
[351854901,1738822062010,-4141.69,0.00013835,2]
[351854902,1738822062032,-151.0,0.00013835,2]
[351854903,1738822062055,-1037.13,0.00013835,2]
[351854904,1738822062078,-500.0,0.00013835,2]
[351854905,1738822062106,-151.0,0.00013835,2]
[351854906,1738822062129,-1000.0,0.00013862,2]
[351854907,1738822062151,-294.68520104,0.00013863,2]
[351854908,1738822062174,-151.0,0.00013879,2]
[351854909,1738822062196,-151.0,0.00013879,2]
[351854910,1738822062219,-151.0,0.00013879,2]
[351854911,1738822062241,-151.0,0.00013879,2]
[351854912,1738822062264,-151.0,0.00013879,2]
[351854913,1738822062286,-151.0,0.00013879,2]
[351854914,1738822062308,-151.0,0.00013879,2]
[351854915,1738822062333,-151.0,0.00013879,2]
[351854916,1738822062357,-151.0,0.00013879,2]
[351854917,1738822062379,-151.0,0.00013879,2]
[351854918,1738822062401,-151.0,0.00013879,2]
[351854919,1738822062423,-151.0,0.00013879,2]
[351854920,1738822062445,-151.0,0.00013879,2]
[351854921,1738822062467,-151.0,0.00013879,2]
[351854922,1738822062488,-151.0,0.00013879,2]
[351854923,1738822062508,-151.0,0.00013879,2]
[351854924,1738822062530,-151.0,0.00013879,2]
[351854925,1738822062550,-272.5,0.00013879,2]
[351854926,1738822062572,-151.0,0.000139,2]
[351854927,1738822062598,-151.0,0.000139,2]
[351854928,1738822062620,-151.0,0.000139,2]
[351854929,1738822062641,-151.0,0.000139,2]
[351854930,1738822062663,-151.0,0.000139,2]
[351854931,1738822062684,-151.0,0.000139,2]
[351854932,1738822062705,-151.0,0.000139,2]
[351854933,1738822062727,-151.0,0.000139,2]
[351854934,1738822062748,-622.0,0.000139,2]
[351854935,1738822062769,-1000.0,0.00013913,2]
[351854936,1738822062791,-1000.0,0.00013914,2]
[351854937,1738822062811,-150.0,0.00013917,2]
[351854938,1738822062832,-537.0,0.00013917,2]
[351854939,1738822062858,-1975.0,0.00013917,2]
[351854940,1738822062880,-2297.0,0.00013917,2]
[351854941,1738822062901,-396.0,0.00013917,2]
[351854942,1738822062924,-294.68520104,0.00013945,2]
[351854943,1738822062947,-1000.0,0.00013962,2]
[351854944,1738822062969,-157.178,0.00013967,2]
[351854945,1738822062991,-50994.8743349,0.0001397,7]
[351854946,1738822063014,-151.0,0.0001397,2]
[351854947,1738822063035,-151.0,0.0001397,2]
[351854948,1738822063057,-151.0,0.0001397,2]
[351854949,1738822063080,-264.01237,0.0001397,2]
[351854950,1738822063103,-157.193693,0.0001397,2]
[351854951,1738822063124,-151.0,0.0001397,2]
[351854952,1738822063145,-172.032232,0.0001397,2]
[351854953,1738822063167,-172.032232,0.0001397,2]
[351854954,1738822063189,-151.0,0.0001397,2]
[351854955,1738822063212,-197.009496,0.0001397,2]
[351854956,1738822063234,-197.009496,0.0001397,2]
[351854957,1738822063258,-218.04473,0.0001397,2]
[351854958,1738822063280,-218.04473,0.0001397,2]
[351854959,1738822063305,-1281.97144096,0.00013971,2]
[351854960,1738822063327,-160.0,0.00013971,2]
[351854961,1738822063349,-500.0,0.00013972,2]
[351854962,1738822063370,-500.0,0.00013972,2]
[351854963,1738822063391,-500.0,0.00013972,2]
[351854964,1738822063413,-500.0,0.00013972,2]
[351854965,1738822063436,-1109.9,0.00013972,2]
[351854966,1738822063458,-500.0,0.00013972,2]
[351854967,1738822063480,-500.0,0.00013972,2]
[351854968,1738822063503,-500.0,0.00013972,2]
[351854969,1738822063526,-500.0,0.00013972,2]
[351854970,1738822063551,-500.0,0.00013972,2]
[351854971,1738822063574,-500.0,0.00013972,2]
[351854972,1738822063597,-507.31515996,0.00013972,2]
[351854973,1738822063620,-500.0,0.00013972,2]
[351854974,1738822063641,-588.76,0.00013972,2]
[351854975,1738822063662,-500.0,0.00013972,2]
[351854976,1738822063683,-606.27,0.00013972,2]
[351854977,1738822063704,-500.0,0.00013972,2]
[351854978,1738822063725,-500.0,0.00013972,2]
[351854979,1738822063746,-500.0,0.00013972,2]
[351854980,1738822063767,-500.0,0.00013972,2]
[351854981,1738822063788,-849.0,0.00013972,2]
[351854982,1738822063809,-500.0,0.00013972,2]
[351854983,1738822063832,-500.0,0.00013972,2]
[351854984,1738822063860,-500.0,0.00013972,2]
[351854985,1738822063883,-500.0,0.00013972,2]
[351854986,1738822063905,-1095.5,0.00013972,2]
[351854987,1738822063928,-871.28,0.00013972,2]
[351854988,1738822063952,-711.69,0.00013972,2]
[351854989,1738822063974,-500.0,0.00013972,2]
[351854990,1738822063997,-500.0,0.00013972,2]
[351854991,1738822064022,-500.0,0.00013972,2]
[351854992,1738822064045,-500.0,0.00013972,2]
[351854993,1738822064070,-500.0,0.00013972,2]
[351854994,1738822064093,-522.91,0.00013972,2]
[351854995,1738822064115,-592.13,0.00013972,2]
[351854996,1738822064138,-500.0,0.00013972,2]
[351854997,1738822064162,-513.98,0.00013972,2]
[351854998,1738822064184,-151.0,0.00013972,2]
[351854999,1738822064206,-500.0,0.00013972,2]
[351855000,1738822064229,-500.0,0.00013972,2]
[351855001,1738822064251,-500.0,0.00013972,2]
[351855002,1738822064274,-259.17818765,0.00013972,2]
[351855003,1738822064295,-500.0,0.00013972,2]
[351855004,1738822064317,-500.0,0.00013972,2]
[351855005,1738822064339,-513.21,0.00013972,2]
[351855006,1738822064362,-581.43,0.00013972,2]
[351855007,1738822064513,-628.04445402,0.00013972,2]
[351855008,1738822064543,-666.88,0.00013972,2]
[351855009,1738822064567,-151.0,0.00013972,2]
[351855010,1738822064591,-151.0,0.00013972,2]
[351855011,1738822064614,-500.0,0.00013972,2]
[351855012,1738822064637,-884.66,0.00013972,2]
[351855013,1738822064660,-500.0,0.00013972,2]
[351855014,1738822064682,-500.0,0.00013972,2]
[351855015,1738822064704,-151.0,0.00013972,2]
[351855016,1738822064726,-151.0,0.00013972,2]
[351855017,1738822064747,-1233.9,0.00013972,2]
[351855018,1738822064769,-500.0,0.00013972,2]
[351855019,1738822064791,-151.0,0.00013972,2]
[351855020,1738822064813,-151.0,0.00013972,2]
[351855021,1738822064835,-151.0,0.00013972,2]
[351855022,1738822064863,-151.0,0.00013972,2]
[351855023,1738822064886,-500.0,0.00013972,2]
[351855024,1738822064908,-629.07,0.00013972,2]
[351855025,1738822064934,-851.34,0.00013972,2]
[351855026,1738822064956,-583.65,0.00013972,2]
[351855027,1738822064979,-500.0,0.00013972,2]
[351855028,1738822065002,-358.92039839,0.00013972,2]
[351855029,1738822065024,-500.0,0.00013972,2]
[351855030,1738822065046,-150.08,0.00013972,2]
[351855031,1738822065068,-500.0,0.00013972,2]
[351855032,1738822065091,-563.95,0.00013972,2]
[351855033,1738822065114,-500.0,0.00013972,2]
[351855034,1738822065137,-500.0,0.00013972,2]
[351855035,1738822065159,-500.0,0.00013972,2]
[351855036,1738822065182,-151.0,0.00013972,2]
[351855037,1738822065204,-154.600991,0.00013972,2]
[351855038,1738822065228,-500.0,0.00013972,2]
[351855039,1738822065250,-500.0,0.00013972,2]
[351855040,1738822065272,-500.0,0.00013972,2]
[351855041,1738822065301,-500.0,0.00013972,2]
[351855042,1738822065325,-500.0,0.00013972,2]
[351855043,1738822065347,-151.0,0.00013972,2]
[351855044,1738822065370,-151.0,0.00013972,2]
[351855045,1738822065393,-500.0,0.00013972,2]
[351855046,1738822065415,-500.0,0.00013972,2]
[351855047,1738822065437,-151.0,0.00013972,2]
[351855048,1738822065459,-151.0,0.00013972,2]
[351855049,1738822065481,-507.11255911,0.00013972,2]
[351855050,1738822065502,-605.28,0.00013972,2]
[351855051,1738822065524,-500.0,0.00013972,2]
[351855052,1738822065546,-500.0,0.00013972,2]
[351855053,1738822065568,-500.0,0.00013972,2]
[351855054,1738822065591,-500.0,0.00013972,2]
[351855055,1738822065613,-500.0,0.00013972,2]
[351855056,1738822065635,-570.19,0.00013972,2]
[351855057,1738822065656,-927.14,0.00013972,2]
[351855058,1738822065678,-883.74,0.00013972,2]
[351855059,1738822065700,-500.0,0.00013972,2]
[351855060,1738822065722,-768.5,0.00013972,2]
[351855061,1738822065743,-636.61,0.00013972,2]
[351855062,1738822065765,-500.0,0.00013972,2]
[351855063,1738822065787,-151.0,0.00013972,2]
[351855064,1738822065809,-710.94,0.00013972,2]
[351855065,1738822065830,-300.464408,0.00013972,2]
[351855066,1738822065857,-676.5,0.00013972,2]
[351855067,1738822065879,-500.0,0.00013972,2]
[351855068,1738822065901,-500.0,0.00013972,2]
[351855069,1738822065923,-500.0,0.00013972,2]
[351855070,1738822065945,-500.0,0.00013972,2]
[351855071,1738822065968,-1357.53,0.00013972,2]
[351855072,1738822065990,-643.15864594,0.00013972,2]
[351855073,1738822066012,-1010.26347364,0.00013972,2]
[351855074,1738822066033,-596.81,0.00013972,2]
[351855075,1738822066054,-500.0,0.00013972,2]
[351855076,1738822066075,-718.41,0.00013972,2]
[351855077,1738822066096,-500.0,0.00013972,2]
[351855078,1738822066117,-500.0,0.00013972,2]
[351855079,1738822066138,-500.0,0.00013972,2]
[351855080,1738822066160,-500.0,0.00013972,2]
[351855081,1738822066181,-500.0,0.00013972,2]
[351855082,1738822066203,-151.0,0.00013972,2]
[351855083,1738822066224,-151.0,0.00013972,2]
[351855084,1738822066250,-500.0,0.00013972,2]
[351855085,1738822066271,-151.540797,0.00013972,2]
[351855086,1738822066292,-500.0,0.00013972,2]
[351855087,1738822066314,-500.0,0.00013972,2]
[351855088,1738822066338,-500.0,0.00013972,2]
[351855089,1738822066360,-500.0,0.00013972,2]
[351855090,1738822066386,-1198.65,0.00013972,2]
[351855091,1738822066408,-500.0,0.00013972,2]
[351855092,1738822066429,-500.0,0.00013972,2]
[351855093,1738822066451,-686.86,0.00013972,2]
[351855094,1738822066471,-517.58572474,0.00013972,2]
[351855095,1738822066492,-500.0,0.00013972,2]
[351855096,1738822066513,-574.50458865,0.00013972,2]
[351855097,1738822066534,-500.0,0.00013972,2]
[351855098,1738822066555,-627.32,0.00013972,2]
[351855099,1738822066579,-503.64,0.00013972,2]
[351855100,1738822066600,-500.0,0.00013972,2]
[351855101,1738822066621,-962.59,0.00013972,2]
[351855102,1738822066642,-500.0,0.00013972,2]
[351855103,1738822066663,-500.0,0.00013972,2]
[351855104,1738822066686,-684.0,0.00013972,2]
[351855105,1738822066714,-500.0,0.00013972,2]
[351855106,1738822066737,-500.0,0.00013972,2]
[351855107,1738822066760,-500.0,0.00013972,2]
[351855108,1738822066782,-1220.69,0.00013972,2]
[351855109,1738822066805,-500.0,0.00013972,2]
[351855110,1738822066828,-500.0,0.00013972,2]
[351855111,1738822066851,-664.19,0.00013972,2]
[351855112,1738822066873,-603.78,0.00013972,2]
[351855113,1738822066896,-500.0,0.00013972,2]
[351855114,1738822066918,-151.0,0.00013972,2]
[351855115,1738822066940,-151.0,0.00013972,2]
[351855116,1738822067096,-500.0,0.00013972,2]
[351855117,1738822067119,-500.0,0.00013972,2]
[351855118,1738822067142,-929.79,0.00013972,2]
[351855119,1738822067166,-500.0,0.00013972,2]
[351855120,1738822067189,-500.0,0.00013972,2]
[351855121,1738822067211,-500.0,0.00013972,2]
[351855122,1738822067233,-594.09,0.00013972,2]
[351855123,1738822067255,-858.78,0.00013972,2]
[351855124,1738822067277,-2224.99,0.00013972,2]